[Event "FTX Road to Miami Prelims 2022"]
[Site "Online"]
[Date "2022.07.04"]
[Round "2.2"]
[White "Tari, Aryan"]
[Black "Giri, Anish"]
[Result "1/2-1/2"]
[ECO "B84"]
[WhiteElo "2672"]
[BlackElo "2760"]
[Annotator "TA"]
[PlyCount "56"]
[EventDate "2022.07.10"]
[EventType "tourn"]
[EventCountry "NET"]
[SourceTitle "playchess.com"]
[Source "ChessBase"]
[SourceQuality "1"]
[TimeControl "40/5400+30:1800+30"]

{[%evp 23,56,27,24,21,37,28,43,43,62,37,50,41,46,26,45,44,47,33,38,41,71,45,60,25,25,16,17,12,24,0,17,0,29,0,9]} 1. e4 {[%emt 1:15:40]} c5 {[%emt 1:15:40]} 2. Nf3 {[%emt 0:00:22]} d6 {[%emt 0:00:22]} 3. d4 {[%emt 0:00:21]} cxd4 {[%emt 0:00:21]} 4. Nxd4 {[%emt 0:00:20]} Nf6 {[%emt 0:00:21]} 5. Nc3 {[%emt 0:00:21]} a6 {[%emt 0:00:20]} 6. a4 {[%emt 0:00:21]} e6 {[%emt 0:00:21]} 7. a5 {[%emt 0:00:37]} Be7 {[%emt 0:00:22]} 8. Be2 {[%emt 0:00:33]} O-O {[%emt 0:00:24]} 9. O-O {[%emt 0:00:21]} Qc7 {[%emt 0:01:00]} 10. Be3 {[%emt 0:00:39]} Nbd7 {[%emt 0:00:22]} 11. Nb3 {[%emt 0:00:49]} b5 {[%emt 0:00:25]} 12. axb6 {[%emt 0:00:34]} Nxb6 {[%emt 0:00:21]} 13. Qd4 {[%emt 0:01:53] B84: Sicilian Scheveningen: 6 Be2 a6, lines without early Be3.} Nfd7 {[%emt 0:01:11]} 14. Rfd1 {[%emt 0:00:36]} Bb7 {[%emt 0:01:52]} 15. Na5 {[%emt 0:01:11] [#] White is slightly better.} Rfc8 $146 {[%emt 0:00:42]} ({Predecessor:} 15... Bc8 16. Nc4 Nxc4 17. Qxc4 Qxc4 18. Bxc4 Bb7 19. Bf4 Nb6 20. Be2 Rfd8 21. Ra5 Bf6 22. Rxd6 Rxd6 23. Bxd6 Bxc3 24. bxc3 Bxe4 25. Rxa6 Rxa6 26. Bxa6 Bxc2 {½-½ (26) De la Hoz Sanchez,R (2009)-Ramos Lopez,V (2190) Gran Canaria 2009}) 16. Ra2 {[%emt 0:02:08] White is much more active.} Nc5 {[%emt 0:01:11]} (16... e5 17. Qd2 $16) 17. Nxb7 {[%emt 0:00:45]} Qxb7 {[%emt 0:00:22]} 18. Rda1 {[%emt 0:01:42]} Nbd7 {[%emt 0:00:44]} 19. f3 {[%emt 0:00:59]} h6 {[%emt 0:02:03]} 20. Kh1 {[%emt 0:00:31]} Rc6 {[%emt 0:01:22]} 21. Qd2 {[%emt 0:01:14][%cal Ob2b4] aiming for b4!} Rb8 {[%emt 0:01:42]} 22. Bf1 {[%emt 0:01:59]} Bf6 {[%emt 0:00:45]} 23. Bd4 {[%emt 0:02:22]} Qb4 {[%emt 0:00:53]} 24. Bxf6 {[%emt 0:00:30]} Nxf6 {[%emt 0:00:20]} 25. Qf2 {[%emt 0:00:45]} ({Not} 25. Bxa6 Nxa6 26. Rxa6 Qxb2 $17) 25... Qb6 {[%emt 0:01:45]} 26. Qd2 {[%emt 0:00:38]} Qb4 {[%emt 0:01:26][%cal Od6d5]} 27. Qf2 {[%emt 0:00:29]} ({Stronger than} 27. Bxa6 Nxa6 28. Rxa6 Qxb2 $17) 27... Qb6 {[%emt 0:00:21]} 28. Qd2 {[%emt 0:00:21]} Qb4 {[%emt 0:00:37] Weighted Error Value: White=0.13 (very precise) /Black=0.04 (flawless)} 1/2-1/2

[Event "FTX Road to Miami Prelims 2022"]
[Site "Online"]
[Date "2022.07.04"]
[Round "2.3"]
[White "Sevian, Samuel"]
[Black "Ju, Wenjun"]
[Result "1-0"]
[ECO "A29"]
[WhiteElo "2684"]
[BlackElo "2560"]
[Annotator "TA"]
[PlyCount "41"]
[EventDate "2022.07.10"]
[EventType "tourn"]
[EventCountry "NET"]
[SourceTitle "playchess.com"]
[Source "ChessBase"]
[SourceQuality "1"]
[TimeControl "40/5400+30:1800+30"]

{[%evp 10,41,7,6,4,11,6,-9,-7,-1,75,81,221,221,306,317,337,339,331,320,448,324,437,421,463,460,513,460,533,500,494,489,483,466]} 1. c4 {[%emt 1:15:40]} Nf6 {[%emt 1:15:40]} 2. Nc3 {[%emt 0:00:22]} e5 {[%emt 0:00:21]} 3. Nf3 {[%emt 0:00:24]} Nc6 {[%emt 0:00:22]} 4. g3 {[%emt 0:00:24]} Bb4 {[%emt 0:00:22]} 5. Bg2 {[%emt 0:00:28]} O-O {[%emt 0:00:22]} 6. Nd5 {[%emt 0:00:25]} e4 {[%emt 0:00:41] A29: English Opening: Four Knights Variation with 4 g3.} 7. Nh4 {[%emt 0:00:29]} d6 {[%emt 0:02:16]} 8. O-O {[%emt 0:00:24] 8.0-0 has lost popularity.} g5 {[%emt 0:02:35] The position is equal.} 9. d4 $1 {[%emt 0:00:24] [#]} Nxd5 $146 {[%emt 0:01:15]} (9... gxh4 $2 10. Bg5 $18) (9... h6 $11 {keeps the balance.}) ({Predecessor:} 9... h6 10. Ne3 gxh4 11. a3 Ba5 12. b4 Bb6 13. c5 h3 14. Bh1 dxc5 15. dxc5 Qxd1 16. Rxd1 Bxc5 17. bxc5 {½-½ (40) Caruana,F (2823)-Esipenko,A (2677) Wijk aan Zee 2021}) 10. cxd5 $16 {[%emt 0:00:23]} gxh4 {[%emt 0:01:16]} (10... Nb8 $16 {might work better.}) 11. dxc6 $18 {[%emt 0:00:27]} bxc6 {[%emt 0:01:47] [#]} 12. Qa4 $1 {[%emt 0:00:48]} ({Not} 12. Bxe4 d5 13. Bc2 Bg4 $16) 12... c5 {[%emt 0:00:44]} 13. a3 {[%emt 0:00:27][%cal Ba2a3,Ba3b4][%mdl 32]} ({Weaker is} 13. Bxe4 Bd7 14. Qb3 Rb8 $16) 13... Bd7 {[%emt 0:00:26]} 14. Qa6 {[%emt 0:00:30]} h3 {[%emt 0:01:56]} 15. Bh1 {[%emt 0:00:52]} cxd4 {[%emt 0:02:01]} 16. axb4 {[%emt 0:00:23] White is clearly winning.} Qe7 {[%emt 0:00:31]} 17. Rd1 {[%emt 0:00:39]} Qe5 {[%emt 0:01:58]} 18. Qc4 {[%emt 0:01:40]} Bg4 {[%emt 0:01:08]} 19. Qxd4 {[%emt 0:00:31]} Bxe2 {[%emt 0:00:26]} 20. Qxe5 {[%emt 0:00:23]} dxe5 {[%emt 0:00:25]} 21. Re1 {[%emt 0:00:21] Black did not feel at home in the position after the opening.  Weighted Error Value: White=0.15 (very precise) /Black=0.62} 1-0

[Event "FTX Road to Miami Prelims 2022"]
[Site "Online"]
[Date "2022.07.04"]
[Round "2.4"]
[White "Aronian, Levon"]
[Black "Erigaisi Arjun"]
[Result "0-1"]
[ECO "B50"]
[WhiteElo "2775"]
[BlackElo "2689"]
[Annotator "TA"]
[PlyCount "120"]
[EventDate "2022.07.10"]
[EventType "tourn"]
[EventCountry "NET"]
[SourceTitle "playchess.com"]
[Source "ChessBase"]
[SourceQuality "1"]
[TimeControl "40/5400+30:1800+30"]

{[%evp 9,120,0,0,-3,0,-17,-18,-31,0,0,5,0,0,0,0,-9,-9,-6,1,0,0,0,7,5,0,13,15,0,71,-17,0,0,0,-16,-11,-25,-28,-33,-12,-2,0,0,16,0,87,73,130,129,162,134,175,139,179,186,177,116,131,77,73,55,62,54,54,54,54,54,57,19,19,19,53,17,17,22,22,22,22,0,0,0,0,0,16,24,19,28,83,0,4,0,58,0,0,-8,-8,-113,-124,-677,0,0,0,0,0,0,0,0,0,-29989,-29990,-29994,-29995,-29997,-29998]} 1. e4 {[%emt 1:15:40]} c5 {[%emt 1:15:40]} 2. Nf3 {[%emt 0:00:22]} d6 {[%emt 0:00:22]} 3. Bc4 {[%emt 0:00:21]} Nf6 {[%emt 0:00:23]} 4. d3 {[%emt 0:00:21]} e6 {[%emt 0:00:22]} 5. O-O {[%emt 0:00:21]} Be7 {[%emt 0:00:24]} 6. a4 {[%emt 0:00:26] B50: Sicilian: 2...d6, Miscellaneous.} O-O {[%emt 0:00:24]} 7. Nbd2 {[%emt 0:00:22][%cal Bb1d2,Bd2f1,Bf1g3][%mdl 32]} Nc6 {[%emt 0:00:24]} 8. Re1 {[%emt 0:00:24] The position is equal.} a6 {[%emt 0:00:26]} 9. c3 {[%emt 0:00:42]} Bd7 {[%emt 0:00:26]} 10. Bb3 {[%emt 0:00:35]} b5 {[%emt 0:00:28]} 11. Nf1 {[%emt 0:00:46]} Qc7 {[%emt 0:00:51]} 12. Ng3 {[%emt 0:00:30] [#]} Rfc8 $146 {[%emt 0:00:29]} ({Predecessor:} 12... Ne5 13. d4 Nxf3+ 14. Qxf3 cxd4 15. cxd4 bxa4 16. Ba2 Qb7 17. d5 Kh8 18. Bg5 e5 {0-1 (50) Mohr,G (2444)-Shengelia,D (2482) Austria 2005}) 13. Bf4 {[%emt 0:00:55]} Qb7 {[%emt 0:00:35]} 14. axb5 {[%emt 0:02:06]} axb5 {[%emt 0:01:20]} 15. Rxa8 {[%emt 0:00:23]} Qxa8 {[%emt 0:01:21]} 16. d4 {[%emt 0:00:20]} cxd4 {[%emt 0:01:08]} 17. cxd4 {[%emt 0:00:22]} Nb4 {[%emt 0:02:02] Inhibits d5.} 18. h4 {[%emt 0:01:32]} h6 {[%emt 0:02:34] Inhibits Bg5.} (18... d5 $11) 19. h5 {[%emt 0:01:17]} (19. Qd2 $1 $16 {[%cal Rd2b4]} d5 20. Ne5) 19... Bf8 {[%emt 0:01:28]} 20. Qd2 {[%emt 0:01:21]} Nc6 {[%emt 0:01:36]} 21. Bc2 {[%emt 0:01:07]} Qa5 {[%emt 0:01:27]} 22. Qd1 {[%emt 0:01:13]} e5 {[%emt 0:01:13]} 23. Bd2 {[%emt 0:00:22]} Qa2 {[%emt 0:00:54]} 24. d5 {[%emt 0:01:09]} Nd4 {[%emt 0:01:32]} 25. Nxd4 {[%emt 0:00:24]} exd4 {[%emt 0:00:20]} 26. Qb1 {[%emt 0:00:22]} Qxb1 {[%emt 0:00:43]} (26... Qa7 $1 $11) 27. Bxb1 $16 {[%emt 0:00:20]} Bg4 {[%emt 0:00:46]} (27... Ra8 $142) 28. f3 $1 $36 {[%emt 0:00:21][%mdl 2048] White is in control.} Bxh5 {[%emt 0:00:24]} 29. Nf5 {[%emt 0:00:22]} Nd7 {[%emt 0:01:06]} 30. Rc1 {[%emt 0:01:45]} Ra8 {[%emt 0:00:48]} 31. Nxd4 {[%emt 0:00:30]} Ne5 {[%emt 0:01:07]} 32. Bf4 {[%emt 0:00:53]} (32. Bc3 $18) 32... f6 {[%emt 0:01:15]} 33. Nxb5 {[%emt 0:02:14]} (33. Kf2 $142) 33... Rb8 {[%emt 0:00:24]} 34. Bxe5 {[%emt 0:00:22]} dxe5 {[%emt 0:00:44]} 35. Bd3 {[%emt 0:00:23]} Be8 {[%emt 0:00:22]} 36. Nc7 {[%emt 0:00:21]} Bd7 {[%emt 0:00:21]} 37. Ne6 {[%emt 0:00:48]} Bd6 {[%emt 0:00:38] Inhibits Rc7.} 38. Rb1 {[%emt 0:01:47]} (38. Nc5 $5 {[%cal Rc5d7]} Be8 39. b3 $14) 38... Kf7 {[%emt 0:00:22]} 39. Bc4 {[%emt 0:00:27]} g6 {[%emt 0:00:26]} 40. b3 {[%emt 0:00:47]} Ra8 {[%emt 0:00:24]} 41. g4 {[%emt 0:32:47]} Ra2 {[%emt 0:30:22]} 42. Rc1 {[%emt 0:02:23]} Ke7 {[%emt 0:00:47]} 43. Rc3 {[%emt 0:00:29]} Bb4 {[%emt 0:01:16]} 44. Rc1 {[%emt 0:00:29]} h5 {[%emt 0:00:41]} 45. gxh5 {[%emt 0:00:22]} gxh5 {[%emt 0:00:20]} 46. Kh1 {[%emt 0:00:54]} h4 {[%emt 0:01:08]} 47. Rg1 {[%emt 0:00:22]} Kd6 {[%emt 0:00:21] [#]} (47... Rf2 $11) 48. Rg7 {[%emt 0:00:23]} ({Better is} 48. Rg6 $1 $16) 48... Be1 $11 {[%emt 0:00:59]} 49. Nd8 {[%emt 0:00:41] Nb7+ is the strong threat.} Bc8 {[%emt 0:00:41]} (49... Bg3 $11) 50. Nf7+ {[%emt 0:00:58]} ({White should play} 50. b4 $1 $14 Ra1 51. Nf7+ Kc7 52. Nxe5+ Kb6 53. Nd7+ Bxd7 54. Rxd7) 50... Kc5 {[%emt 0:00:25] Threatens to win with ...Bh3.} 51. Nxe5 {[%emt 0:00:20]} Kd4 {[%emt 0:00:32]} 52. Nc6+ {[%emt 0:01:01] [#]} (52. Rg2 $11 Rxg2 53. Nc6+ Ke3 54. Kxg2) 52... Ke3 $1 $17 {[%emt 0:00:21] aiming for ...Bh3.} 53. d6 $2 {[%emt 0:00:21][%mdl 8192]} (53. Rg1 $17 Bg3 54. Rd1 (54. Rf1 $2 Bh3 $19)) 53... Bh3 $2 {[%emt 0:00:40]} (53... Bg3 $19 {( -> ...Kf2)} 54. Ra7 (54. d7 Kf2 55. d8=Q Ra1+) 54... Rd2) 54. Bf1 $1 $11 {[%emt 0:00:43]} Bxf1 {[%emt 0:00:39]} 55. d7 {[%emt 0:00:21]} Be2 {[%emt 0:00:24]} 56. d8=Q {[%emt 0:00:41] White wants to mate with Qd4+.} Bxf3+ {[%emt 0:00:21]} 57. Rg2 $1 {[%emt 0:00:20]} Rxg2 {[%emt 0:00:39] The board is on fire.} 58. Qd4+ $2 {[%emt 0:00:35][%mdl 8192]} (58. Qb6+ $11 Kd3 59. Qd8+ Ke3 60. Qb6+ (60. Qd4+ {gets mated.} Ke2 61. Qxf6 Rf2+) 60... Kd3 61. Qd8+ Ke3) 58... Ke2 {[%emt 0:00:21] Black mates.} 59. Qc4+ {[%emt 0:00:21]} Kf2 {[%emt 0:00:25]} 60. Qc5+ {[%emt 0:00:55]} Kf1 {[%emt 0:00:26] Quite a comeback for Black.  Weighted Error Value: White=0.36/Black=0.29 (precise)} 0-1

[Event "FTX Road to Miami Prelims 2022"]
[Site "Online"]
[Date "2022.07.04"]
[Round "2.6"]
[White "Rapport, Richard"]
[Black "Duda, Jan-Krzysztof"]
[Result "1/2-1/2"]
[ECO "C42"]
[WhiteElo "2764"]
[BlackElo "2750"]
[Annotator "TA"]
[PlyCount "176"]
[EventDate "2022.07.10"]
[EventType "tourn"]
[EventCountry "NET"]
[SourceTitle "playchess.com"]
[Source "ChessBase"]
[SourceQuality "1"]
[TimeControl "40/5400+30:1800+30"]

{[%evp 14,176,15,17,19,0,10,8,4,14,14,9,7,0,4,17,2,14,22,28,25,24,29,12,29,24,25,3,9,7,18,18,18,18,18,18,18,18,18,18,18,18,18,18,18,18,18,18,18,18,18,18,18,18,18,18,18,18,18,18,18,15,22,2,18,2,18,2,18,2,18,2,2,2,18,2,18,2,18,2,18,2,18,0,18,0,18,2,18,18,18,2,18,2,18,0,18,0,0,0,19,10,19,10,19,10,11,11,19,11,19,11,19,11,19,12,12,0,19,19,19,0,19,12,19,19,19,19,19,12,19,19,19,0,19,0,19,0,19,0,19,0,19,0,0,0,0,0,0,0,0,0,0,0,0,0,0,0,0,0,0,0,0,0,0]} 1. e4 {[%emt 1:15:40]} e5 {[%emt 1:15:40]} 2. Nf3 {[%emt 0:00:26]} Nf6 {[%emt 0:00:22]} 3. Nxe5 {[%emt 0:00:24]} d6 {[%emt 0:00:21]} 4. Nf3 {[%emt 0:00:21]} Nxe4 {[%emt 0:00:20]} 5. Qe2 {[%emt 0:00:22]} Qe7 {[%emt 0:00:22]} 6. d3 {[%emt 0:00:21]} Nf6 {[%emt 0:00:20]} 7. Nc3 {[%emt 0:00:39]} Qxe2+ {[%emt 0:00:55]} 8. Bxe2 {[%emt 0:00:19]} g6 {[%emt 0:00:21] C42: Petroff Defence: 3 Nxe5 and unusual White 3rd moves.} 9. Nd4 {[%emt 0:00:26]} a6 {[%emt 0:01:13]} 10. h3 {[%emt 0:00:32]} Bg7 {[%emt 0:00:22]} 11. Be3 {[%emt 0:00:27]} Bd7 {[%emt 0:01:11]} 12. Bf3 {[%emt 0:00:23]} Nc6 {[%emt 0:00:21]} 13. Nxc6 {[%emt 0:00:22]} Bxc6 {[%emt 0:00:20]} 14. Bxc6+ {[%emt 0:00:21]} bxc6 {[%emt 0:00:20] [#]} 15. O-O-O $146 {[%emt 0:00:28]} ({Predecessor:} 15. g4 Kd7 16. Kd2 Rab8 17. Rab1 h5 18. g5 Nd5 19. Nxd5 cxd5 20. d4 Rhe8 21. f3 Re6 {½-½ (21) Selyanin,D-Yurchenko,N (2074) Kislovodsk 2011}) 15... Nd5 {[%emt 0:00:42]} 16. Nxd5 {[%emt 0:00:22]} cxd5 {[%emt 0:00:20]} 17. d4 {[%emt 0:00:21]} Kd7 {[%emt 0:00:29]} 18. Rd3 {[%emt 0:00:24]} Rhb8 {[%emt 0:01:09]} 19. Re1 {[%emt 0:01:09]} Re8 {[%emt 0:03:46]} 20. Kd1 {[%emt 0:00:39]} Rab8 {[%emt 0:00:31] The position is equal.} 21. Rb3 {[%emt 0:01:26]} Rxb3 {[%emt 0:00:58]} 22. axb3 {[%emt 0:00:23]} c5 {[%emt 0:00:28]} 23. dxc5 {[%emt 0:06:15]} dxc5 {[%emt 0:00:20]} 24. Bxc5 {[%emt 0:00:38]} Rxe1+ {[%emt 0:00:25]} 25. Kxe1 {[%emt 0:00:20]} Bxb2 $11 {[%emt 0:00:21][%mdl 4096] Endgame KB-KB} 26. Ke2 {[%emt 0:00:27]} Kc6 {[%emt 0:00:35]} 27. Bf8 {[%emt 0:00:29]} Bd4 {[%emt 0:01:48]} 28. g4 {[%emt 0:00:32]} Kb5 {[%emt 0:00:34]} 29. f3 {[%emt 0:00:31]} Kc6 {[%emt 0:00:30]} 30. Kd3 {[%emt 0:00:22]} Be5 {[%emt 0:00:21]} 31. Bh6 {[%emt 0:00:23]} Bf6 {[%emt 0:00:23]} 32. Be3 {[%emt 0:00:37]} Be5 {[%emt 0:00:22]} 33. Bd4 {[%emt 0:01:06]} Bg3 {[%emt 0:00:29]} 34. Bg7 {[%emt 0:01:03]} Bf2 {[%emt 0:00:26]} 35. Be5 {[%emt 0:00:27]} Bb6 {[%emt 0:00:25]} 36. Bf6 {[%emt 0:00:50]} Bc5 {[%emt 0:00:28]} 37. f4 {[%emt 0:00:26][%cal Bf3f4,Bf4f5][%mdl 32]} Bd6 {[%emt 0:00:24]} 38. f5 {[%emt 0:00:21]} Bc5 {[%emt 0:00:31]} 39. Ke2 {[%emt 0:00:24]} Bd6 {[%emt 0:00:28]} 40. Ke3 {[%emt 0:00:22]} Kc5 {[%emt 0:00:26]} 41. Bb2 {[%emt 0:30:34]} Kc6 {[%emt 0:30:29]} 42. Kd4 {[%emt 0:00:33]} Bf8 {[%emt 0:00:40] [#] Threatens to win with ...Bg7+.} 43. Kd3 {[%emt 0:00:49]} Bc5 {[%emt 0:00:23]} 44. Be5 {[%emt 0:00:29]} Bb6 {[%emt 0:00:24]} 45. Ke2 {[%emt 0:00:39]} Bd8 {[%emt 0:00:26]} 46. Ke3 {[%emt 0:00:28]} Bg5+ {[%emt 0:00:25]} 47. Kd4 {[%emt 0:00:25]} Bd8 {[%emt 0:00:43]} 48. Kd3 {[%emt 0:00:50]} Bb6 {[%emt 0:00:23]} 49. Ke2 {[%emt 0:00:48]} Bd8 {[%emt 0:00:25]} 50. Kf3 {[%emt 0:00:24]} Bg5 {[%emt 0:00:21]} 51. Bf4 {[%emt 0:00:46]} Bf6 {[%emt 0:00:25]} 52. Ke2 {[%emt 0:00:59]} Bd8 {[%emt 0:00:27]} 53. Kd3 {[%emt 0:00:22]} Bf6 {[%emt 0:00:31]} 54. Bh6 {[%emt 0:00:32]} Be5 {[%emt 0:00:26]} 55. h4 {[%emt 0:00:27]} Bf6 {[%emt 0:00:37]} 56. h5 {[%emt 0:00:22]} Be5 {[%emt 0:00:35]} 57. Bf8 {[%emt 0:00:32]} Bf6 {[%emt 0:00:31]} 58. Bb4 {[%emt 0:00:24]} Bd8 {[%emt 0:01:35]} 59. Ke3 {[%emt 0:00:31]} Bg5+ {[%emt 0:00:23]} 60. Kf3 {[%emt 0:00:24]} Kb5 {[%emt 0:00:38]} 61. Bf8 {[%emt 0:00:25]} Kc6 {[%emt 0:00:32]} 62. Ke2 {[%emt 0:00:27]} Bf6 {[%emt 0:00:24]} 63. Kd3 {[%emt 0:00:25]} Kb5 {[%emt 0:00:36]} 64. Bd6 {[%emt 0:00:34]} Kc6 {[%emt 0:00:23]} 65. Bf4 {[%emt 0:00:22]} Kc5 {[%emt 0:00:48]} 66. Be3+ {[%emt 0:00:30]} Kc6 {[%emt 0:00:26]} 67. Bf2 {[%emt 0:00:58]} Bd8 {[%emt 0:00:26]} 68. Bd4 {[%emt 0:00:22]} Bh4 {[%emt 0:00:31]} 69. Ke3 {[%emt 0:00:29]} Bg5+ {[%emt 0:00:24]} 70. Kf3 {[%emt 0:00:22]} Kd6 {[%emt 0:00:31]} 71. Ke2 {[%emt 0:00:55]} Kc6 {[%emt 0:00:24]} 72. Kf2 {[%emt 0:00:21]} Kd7 {[%emt 0:00:23]} 73. Be3 {[%emt 0:00:52]} Bf6 {[%emt 0:00:37]} 74. Kf3 {[%emt 0:01:05]} Be5 {[%emt 0:00:26]} 75. Bg5 {[%emt 0:00:23]} Kc6 {[%emt 0:00:32]} 76. Ke3 {[%emt 0:00:24]} Kc5 {[%emt 0:00:45]} 77. Kd3 {[%emt 0:00:30]} Kd6 {[%emt 0:00:26]} 78. c4 {[%emt 0:00:28]} dxc4+ {[%emt 0:01:10]} 79. Kxc4 {[%emt 0:00:28]} Kc6 {[%emt 0:00:24]} 80. Be7 {[%emt 0:00:23]} Bb2 {[%emt 0:00:37]} 81. Bc5 {[%emt 0:00:49]} Be5 {[%emt 0:00:24]} 82. Be3 {[%emt 0:00:43]} Bf6 {[%emt 0:00:39]} 83. hxg6 {[%emt 0:00:47]} hxg6 {[%emt 0:00:26]} 84. fxg6 {[%emt 0:00:22]} fxg6 {[%emt 0:00:20]} 85. Bf4 {[%emt 0:00:22]} Bg7 {[%emt 0:00:25]} 86. Be3 {[%emt 0:00:21]} Bf6 {[%emt 0:00:21]} 87. Bf4 {[%emt 0:00:21]} Bg7 {[%emt 0:00:21]} 88. Be3 {[%emt 0:00:20]} Bf6 {[%emt 0:00:21] Not much happened in this game.  Weighted Error Value: White=0.07 (flawless) /Black=0.06 (flawless)} 1/2-1/2